[Event "EWIRCC 2019"]
[Site "Monte-Carlo"]
[Date "2019.11.30"]
[Round "1.1"]
[White "Muzychuk, Anna"]
[Black "Chigaeva, Anastasia"]
[Result "1-0"]
[ECO "C11"]
[WhiteElo "2543"]
[BlackElo "2156"]
[Annotator "ChessBase"]
[PlyCount "87"]
[EventDate "2019.11.28"]
[EventType "swiss"]
[EventCountry "MNC"]
[SourceTitle "playchess.com"]
[Source "ChessBase"]
[SourceQuality "1"]
[TimeControl "5400+30"]

1. e4 {[%emt 1:15:12]} e6 {[%emt 1:15:13]} 2. d4 {[%emt 0:00:22]} d5 {[%emt 0:00:21]} 3. Nc3 {[%emt 0:00:22]} Nf6 {[%emt 0:00:23]} 4. e5 {[%emt 0:00:23]} Nfd7 {[%emt 0:00:21]} 5. f4 {[%emt 0:00:23]} c5 {[%emt 0:00:22]} 6. Nf3 {[%emt 0:00:20]} Qb6 {[%emt 0:00:24]} 7. Na4 {[%emt 0:01:00]} Qa5+ {[%emt 0:00:22]} 8. c3 {[%emt 0:00:21]} cxd4 {[%emt 0:01:52]} 9. b4 {[%emt 0:00:22]} Qc7 {[%emt 0:00:25]} 10. Qxd4 {[%emt 0:00:25]} Nc6 {[%emt 0:01:15]} 11. Qf2 {[%emt 0:02:56]} a6 {[%emt 0:03:19]} 12. Be3 {[%emt 0:02:49]} Be7 {[%emt 0:01:44]} 13. Bd3 {[%emt 0:00:43]} f6 {[%emt 0:05:43]} 14. exf6 {[%emt 0:03:27]} Nxf6 {[%emt 0:00:33]} 15. O-O {[%emt 0:01:33]} O-O {[%emt 0:00:42]} 16. Nb6 {[%emt 0:01:39]} Rb8 {[%emt 0:00:26]} 17. Nxc8 {[%emt 0:00:46]} Rbxc8 {[%emt 0:01:58]} 18. Ng5 {[%emt 0:01:44]} Qd7 {[%emt 0:00:37]} 19. f5 {[%emt 0:01:02]} e5 {[%emt 0:00:52]} 20. Ne6 {[%emt 0:00:22]} Rf7 {[%emt 0:00:49]} 21. Rad1 {[%emt 0:00:26]} Nd8 {[%emt 0:01:19]} 22. Nc5 {[%emt 0:00:35]} Qc7 {[%emt 0:00:59]} 23. h3 {[%emt 0:00:33]} Bd6 {[%emt 0:01:06]} 24. g4 {[%emt 0:02:06]} Nd7 {[%emt 0:00:40]} 25. Nxd7 {[%emt 0:00:39]} Qxd7 {[%emt 0:00:23]} 26. Bc2 {[%emt 0:01:02]} Rxc3 {[%emt 0:00:23]} 27. Bb3 {[%emt 0:00:22]} Rf8 {[%emt 0:00:38]} 28. Rxd5 {[%emt 0:00:39]} Kh8 {[%emt 0:00:34]} 29. Qd2 {[%emt 0:00:31]} Rc6 {[%emt 0:00:25]} 30. Rd1 {[%emt 0:00:26]} Nf7 {[%emt 0:00:21]} 31. Rd3 {[%emt 0:00:26]} Rd8 {[%emt 0:00:28]} 32. Bd5 {[%emt 0:00:25]} e4 {[%emt 0:00:40]} 33. Bxc6 {[%emt 0:00:34]} Qxc6 {[%emt 0:00:22]} 34. Rd5 {[%emt 0:00:21]} Qc7 {[%emt 0:00:46]} 35. Qd4 {[%emt 0:00:32]} h6 {[%emt 0:00:29]} 36. Bf4 {[%emt 0:00:44]} Bxf4 {[%emt 0:00:28]} 37. Rxd8+ {[%emt 0:00:21]} Nxd8 {[%emt 0:00:23]} 38. Qxd8+ {[%emt 0:00:21]} Qxd8 {[%emt 0:00:22]} 39. Rxd8+ {[%emt 0:00:21]} Kh7 {[%emt 0:00:21]} 40. Kf2 {[%emt 0:00:21]} b6 {[%emt 0:00:45]} 41. Re8 {[%emt 0:00:22]} e3+ {[%emt 0:00:25]} 42. Kf3 {[%emt 0:00:22]} Bd6 {[%emt 0:00:28]} 43. a3 {[%emt 0:00:22]} a5 {[%emt 0:00:21]} 44. Re6 {[%emt 0:00:21]} 1-0

[Event "EWIRCC 2019"]
[Site "Monte-Carlo"]
[Date "2019.11.30"]
[Round "1.3"]
[White "Muzychuk, Mariya"]
[Black "Nicoara, Malina"]
[Result "1-0"]
[ECO "B04"]
[WhiteElo "2552"]
[BlackElo "2066"]
[Annotator "ChessBase"]
[PlyCount "55"]
[EventDate "2019.11.28"]
[EventType "swiss"]
[EventCountry "MNC"]
[SourceTitle "playchess.com"]
[Source "ChessBase"]
[SourceQuality "1"]
[TimeControl "5400+30"]

1. e4 {[%emt 1:15:13]} Nf6 {[%emt 1:15:17]} 2. e5 {[%emt 0:00:22]} Nd5 {[%emt 0:00:22]} 3. d4 {[%emt 0:00:21]} d6 {[%emt 0:00:21]} 4. Nf3 {[%emt 0:00:21]} Nb6 {[%emt 0:00:21]} 5. a4 {[%emt 0:01:00]} a5 {[%emt 0:00:23]} 6. Nc3 {[%emt 0:00:32]} g6 {[%emt 0:00:32]} 7. Be2 {[%emt 0:00:46]} Bg7 {[%emt 0:00:23]} 8. O-O {[%emt 0:00:26]} O-O {[%emt 0:00:21]} 9. Bf4 {[%emt 0:00:32]} Bg4 {[%emt 0:01:12]} 10. h3 {[%emt 0:00:35]} Bxf3 {[%emt 0:00:23]} 11. Bxf3 {[%emt 0:00:21]} d5 {[%emt 0:00:55]} 12. Re1 {[%emt 0:00:31]} c6 {[%emt 0:01:01]} 13. b3 {[%emt 0:00:42]} Na6 {[%emt 0:00:25]} 14. Qd2 {[%emt 0:00:36]} Nc7 {[%emt 0:00:25]} 15. Bh6 {[%emt 0:00:33]} Ne6 {[%emt 0:00:26]} 16. Rad1 {[%emt 0:00:27]} Nd7 {[%emt 0:00:34]} 17. Bg4 {[%emt 0:00:55]} Qb6 {[%emt 0:00:34]} 18. h4 {[%emt 0:01:36]} Rfd8 {[%emt 0:01:27]} 19. Bxe6 {[%emt 0:00:40]} fxe6 {[%emt 0:00:21]} 20. h5 {[%emt 0:00:57]} Rf8 {[%emt 0:00:47]} 21. hxg6 {[%emt 0:00:48]} hxg6 {[%emt 0:00:25]} 22. Qg5 {[%emt 0:00:35]} Rf7 {[%emt 0:01:10]} 23. Qxg6 {[%emt 0:00:44]} Nf8 {[%emt 0:00:20]} 24. Qg4 {[%emt 0:00:34]} Kh8 {[%emt 0:06:55]} 25. Bg5 {[%emt 0:02:59]} c5 {[%emt 0:00:46]} 26. Nb5 {[%emt 0:01:52]} Rc8 {[%emt 0:01:51]} 27. Re3 {[%emt 0:00:52]} Qd8 {[%emt 0:03:14]} 28. Nd6 {[%emt 0:00:53]} 1-0

[Event "EWIRCC 2019"]
[Site "Monte-Carlo"]
[Date "2019.11.30"]
[Round "1.4"]
[White "Gitu, Paula-Alexandra"]
[Black "Chiburdanidze, Maia"]
[Result "1-0"]
[ECO "A07"]
[WhiteElo "2118"]
[BlackElo "2500"]
[Annotator "ChessBase"]
[PlyCount "63"]
[EventDate "2019.11.28"]
[EventType "swiss"]
[EventCountry "MNC"]
[SourceTitle "playchess.com"]
[Source "ChessBase"]
[SourceQuality "1"]
[TimeControl "5400+30"]

1. Nf3 {[%emt 1:15:12]} Nf6 {[%emt 1:15:12]} 2. g3 {[%emt 0:00:21]} d5 {[%emt 0:00:22]} 3. Bg2 {[%emt 0:00:22]} e6 {[%emt 0:00:24]} 4. O-O {[%emt 0:00:26]} c6 {[%emt 0:00:33]} 5. d3 {[%emt 0:00:34]} Nbd7 {[%emt 0:00:33]} 6. Nbd2 {[%emt 0:00:48]} Bd6 {[%emt 0:00:38]} 7. e4 {[%emt 0:00:34]} Qc7 {[%emt 0:00:45]} 8. Qe2 {[%emt 0:02:50]} O-O {[%emt 0:01:38]} 9. d4 {[%emt 0:01:04]} e5 {[%emt 0:05:52]} 10. exd5 {[%emt 0:01:30]} cxd5 {[%emt 0:01:34]} 11. dxe5 {[%emt 0:00:32]} Nxe5 {[%emt 0:00:25]} 12. Nxe5 {[%emt 0:01:00]} Bxe5 {[%emt 0:00:22]} 13. Nf3 {[%emt 0:00:23]} Bd6 {[%emt 0:00:35]} 14. Nd4 {[%emt 0:00:23]} Bd7 {[%emt 0:01:00]} 15. c3 {[%emt 0:02:15]} a6 {[%emt 0:01:09]} 16. a4 {[%emt 0:00:50]} Rae8 {[%emt 0:01:19]} 17. Qd3 {[%emt 0:00:24]} Ne4 {[%emt 0:01:00]} 18. Be3 {[%emt 0:02:50]} f5 {[%emt 0:01:35]} 19. Ne2 {[%emt 0:00:29]} Be6 {[%emt 0:00:57]} 20. Nf4 {[%emt 0:00:54]} Bxf4 {[%emt 0:00:37]} 21. Bxf4 {[%emt 0:00:21]} Qf7 {[%emt 0:00:21]} 22. Be3 {[%emt 0:02:10]} Rc8 {[%emt 0:00:34]} 23. Rfe1 {[%emt 0:01:03]} Rfd8 {[%emt 0:00:56]} 24. f3 {[%emt 0:00:59]} Nf6 {[%emt 0:00:36]} 25. Bd4 {[%emt 0:00:39]} Ne8 {[%emt 0:01:24]} 26. Re5 {[%emt 0:00:41]} Nd6 {[%emt 0:00:36]} 27. Rae1 {[%emt 0:00:25]} Bd7 {[%emt 0:00:21]} 28. Re7 {[%emt 0:00:34]} Qh5 {[%emt 0:00:55]} 29. Rxg7+ {[%emt 0:00:50]} Kf8 {[%emt 0:00:21]} 30. Ree7 {[%emt 0:00:31]} Bxa4 {[%emt 0:00:39]} 31. Rxh7 {[%emt 0:00:33]} Qg5 {[%emt 0:00:57]} 32. Be3 {[%emt 0:00:29]} 1-0

[Event "EWIRCC 2019"]
[Site "Monte-Carlo"]
[Date "2019.11.30"]
[Round "1.5"]
[White "Stefanova, Antoaneta"]
[Black "Skuhala, Barbara"]
[Result "1-0"]
[ECO "C10"]
[WhiteElo "2481"]
[BlackElo "2109"]
[Annotator "ChessBase"]
[PlyCount "104"]
[EventDate "2019.11.28"]
[EventType "swiss"]
[EventCountry "MNC"]
[SourceTitle "playchess.com"]
[Source "ChessBase"]
[SourceQuality "1"]
[TimeControl "5400+30"]

1. e4 {[%emt 1:15:11]} e6 {[%emt 1:15:14]} 2. d4 {[%emt 0:00:22]} d5 {[%emt 0:00:22]} 3. Nd2 {[%emt 0:00:23]} dxe4 {[%emt 0:00:24]} 4. Nxe4 {[%emt 0:00:22]} Nd7 {[%emt 0:00:21]} 5. Bd3 {[%emt 0:00:27]} Ngf6 {[%emt 0:00:24]} 6. c3 {[%emt 0:00:23]} Be7 {[%emt 0:00:38]} 7. Nf3 {[%emt 0:00:25]} O-O {[%emt 0:00:39]} 8. O-O {[%emt 0:00:25]} b6 {[%emt 0:00:36]} 9. Qe2 {[%emt 0:02:17]} Bb7 {[%emt 0:00:28]} 10. Rd1 {[%emt 0:00:45]} Qc8 {[%emt 0:04:11]} 11. h3 {[%emt 0:03:15]} c5 {[%emt 0:01:09]} 12. Bg5 {[%emt 0:02:58]} Qc7 {[%emt 0:02:40]} 13. Nxf6+ {[%emt 0:03:12]} Nxf6 {[%emt 0:00:50]} 14. Bxf6 {[%emt 0:00:47]} Bxf6 {[%emt 0:00:59]} 15. Be4 {[%emt 0:00:26]} Rfd8 {[%emt 0:00:48]} 16. Rac1 {[%emt 0:04:05]} g6 {[%emt 0:00:28]} 17. Qe3 {[%emt 0:00:48]} Kg7 {[%emt 0:00:48]} 18. Rc2 {[%emt 0:00:45]} cxd4 {[%emt 0:02:06]} 19. cxd4 {[%emt 0:00:22]} Qd7 {[%emt 0:00:21]} 20. Rcd2 {[%emt 0:00:51]} Bxe4 {[%emt 0:00:35]} 21. Qxe4 {[%emt 0:00:23]} Qd5 {[%emt 0:00:32]} 22. Qxd5 {[%emt 0:01:16]} Rxd5 {[%emt 0:00:23]} 23. Kf1 {[%emt 0:00:23]} Rad8 {[%emt 0:00:36]} 24. Ke2 {[%emt 0:00:22]} g5 {[%emt 0:00:25]} 25. g4 {[%emt 0:00:42]} Kg6 {[%emt 0:00:23]} 26. Ke3 {[%emt 0:00:28]} Bg7 {[%emt 0:00:34]} 27. Ne1 {[%emt 0:01:01]} f5 {[%emt 0:00:48]} 28. Rd3 {[%emt 0:00:25]} h5 {[%emt 0:00:40]} 29. f3 {[%emt 0:00:23]} hxg4 {[%emt 0:00:58]} 30. hxg4 {[%emt 0:01:08]} Rh8 31. Nc2 {[%emt 0:00:13]} a5 {[%emt 0:01:39]} 32. R1d2 {[%emt 0:00:27]} Rh3 {[%emt 0:00:27]} 33. Kf2 {[%emt 0:00:25]} Bf6 {[%emt 0:00:39]} 34. Ne3 {[%emt 0:00:25]} Rh2+ {[%emt 0:00:25]} 35. Ng2 {[%emt 0:00:38]} Be7 {[%emt 0:01:00]} 36. a3 {[%emt 0:00:25]} Bd6 {[%emt 0:00:25]} 37. Kg1 {[%emt 0:00:26]} Bg3 {[%emt 0:00:41]} 38. Ne3 {[%emt 0:00:40]} Rxd2 {[%emt 0:00:26]} 39. Rxd2 {[%emt 0:00:21]} Rb5 {[%emt 0:00:23]} 40. Nc4 {[%emt 0:00:33]} Rb3 {[%emt 0:00:31]} 41. Kg2 {[%emt 0:00:27]} Bf4 {[%emt 0:00:22]} 42. Re2 {[%emt 0:00:21]} Kf6 {[%emt 0:00:23]} 43. Kf2 {[%emt 0:00:51]} a4 {[%emt 0:00:21]} 44. Rc2 {[%emt 0:00:35]} b5 {[%emt 0:00:30]} 45. Na5 {[%emt 0:00:24]} Rd3 {[%emt 0:00:34]} 46. Nc6 {[%emt 0:00:29]} Rd1 {[%emt 0:00:40]} 47. Ke2 {[%emt 0:00:32]} Rg1 {[%emt 0:00:25]} 48. gxf5 {[%emt 0:00:36]} exf5 {[%emt 0:00:22]} 49. Kd3 {[%emt 0:00:23]} Rd1+ {[%emt 0:00:45]} 50. Ke2 {[%emt 0:00:23]} Rh1 {[%emt 0:00:45]} 51. Nb4 {[%emt 0:00:33]} Rh2+ {[%emt 0:00:34]} 52. Kd3 {[%emt 0:00:23]} Rxc2 {[%emt 0:00:48]} 1-0

[Event "EWIRCC 2019"]
[Site "Monte-Carlo"]
[Date "2019.11.30"]
[Round "1.6"]
[White "Antova, Gabriela"]
[Black "Sebag, Marie"]
[Result "1/2-1/2"]
[ECO "D46"]
[WhiteElo "2306"]
[BlackElo "2443"]
[Annotator "NA"]
[PlyCount "84"]
[EventDate "2019.11.28"]
[EventType "swiss"]
[EventCountry "MNC"]
[SourceTitle "playchess.com"]
[Source "ChessBase"]
[SourceQuality "1"]
[TimeControl "5400+30"]

1. d4 {[%emt 1:15:12]} d5 {[%emt 1:15:12]} 2. c4 {[%emt 0:00:23]} c6 {[%emt 0:00:22]} 3. Nc3 {[%emt 0:00:37]} Nf6 {[%emt 0:00:24]} 4. Nf3 {[%emt 0:00:24]} e6 {[%emt 0:00:23]} 5. e3 {[%emt 0:00:24]} Nbd7 {[%emt 0:00:27]} 6. Qc2 {[%emt 0:00:25]} Bd6 {[%emt 0:00:34]} 7. Bd3 {[%emt 0:00:42]} O-O {[%emt 0:00:49]} 8. O-O {[%emt 0:00:25]} dxc4 {[%emt 0:00:41]} 9. Bxc4 {[%emt 0:00:23]} b5 {[%emt 0:00:22]} 10. Be2 {[%emt 0:01:25]} Bb7 {[%emt 0:00:26]} 11. e4 {[%emt 0:00:53]} e5 {[%emt 0:00:24]} 12. Bg5 {[%emt 0:02:20]} exd4 {[%emt 0:03:14]} 13. Nxd4 {[%emt 0:00:43]} Qc7 {[%emt 0:00:22]} 14. g3 {[%emt 0:03:02]} Rfe8 {[%emt 0:01:45]} 15. Bf3 {[%emt 0:01:40]} Be5 {[%emt 0:02:36]} 16. Nf5 {[%emt 0:01:23]} g6 {[%emt 0:01:38]} 17. Nh6+ {[%emt 0:00:54]} Kg7 {[%emt 0:00:21]} 18. Rac1 {[%emt 0:00:28]} Nc5 {[%emt 0:02:22]} 19. Be3 {[%emt 0:03:42]} Ne6 {[%emt 0:00:45]} 20. Rfd1 {[%emt 0:00:23]} a6 {[%emt 0:02:13]} 21. Qb3 {[%emt 0:00:44]} Qe7 {[%emt 0:01:15]} 22. a4 {[%emt 0:00:52]} Rad8 {[%emt 0:00:44]} 23. axb5 {[%emt 0:00:44]} axb5 {[%emt 0:00:25]} 24. Ne2 {[%emt 0:00:55]} Rxd1+ {[%emt 0:01:20]} 25. Rxd1 {[%emt 0:00:20]} Rd8 {[%emt 0:00:20]} 26. Rxd8 {[%emt 0:01:44]} Qxd8 {[%emt 0:00:23]} 27. Ng4 {[%emt 0:00:21]} Nxg4 28. Bxg4 {[%emt 0:00:21]} c5 {[%emt 0:01:36]} 29. Bxe6 {[%emt 0:00:57]} fxe6 {[%emt 0:00:22]} 30. f3 {[%emt 0:00:24]} Qb6 {[%emt 0:01:27]} 31. Nc3 {[%emt 0:00:29]} c4 {[%emt 0:00:38]} 32. Bxb6 {[%emt 0:00:28]} cxb3 {[%emt 0:00:21]} 33. Nxb5 {[%emt 0:01:03]} Bxb2 {[%emt 0:00:29]} 34. Nd4 {[%emt 0:00:20]} Bxd4+ {[%emt 0:00:35]} 35. Bxd4+ {[%emt 0:00:21]} Kf7 {[%emt 0:00:23]} 36. Kf2 {[%emt 0:00:30]} Ke7 {[%emt 0:00:36]} 37. Ke3 {[%emt 0:00:25]} Kd6 {[%emt 0:00:36]} 38. Kd2 {[%emt 0:00:55]} e5 {[%emt 0:00:29]} 39. Bb2 {[%emt 0:00:29]} Bc8 {[%emt 0:00:27]} 40. f4 {[%emt 0:00:43]} exf4 {[%emt 0:00:33]} 41. gxf4 {[%emt 0:00:21]} Kc5 {[%emt 0:00:28]} 42. Kc3 {[%emt 0:00:24]} Be6 {[%emt 0:02:13]} 1/2-1/2

[Event "EWIRCC 2019"]
[Site "Monte-Carlo"]
[Date "2019.11.30"]
[Round "1.7"]
[White "Gunina, Valentina"]
[Black "Azimova, Karina"]
[Result "1-0"]
[ECO "C55"]
[WhiteElo "2509"]
[BlackElo "2081"]
[Annotator "ChessBase"]
[PlyCount "46"]
[EventDate "2019.11.28"]
[EventType "swiss"]
[EventCountry "MNC"]
[SourceTitle "playchess.com"]
[Source "ChessBase"]
[SourceQuality "1"]
[TimeControl "5400+30"]

1. e4 {[%emt 1:15:13]} e5 {[%emt 1:15:11]} 2. Nf3 {[%emt 0:00:21]} d6 {[%emt 0:00:21]} 3. Bc4 {[%emt 0:00:29]} Be7 {[%emt 0:00:28]} 4. d3 {[%emt 0:01:49]} Nf6 {[%emt 0:00:26]} 5. h3 {[%emt 0:00:33]} O-O {[%emt 0:00:34]} 6. O-O {[%emt 0:00:23]} Nc6 {[%emt 0:00:35]} 7. a4 {[%emt 0:00:30]} d5 {[%emt 0:01:28]} 8. exd5 {[%emt 0:00:23]} Nxd5 {[%emt 0:00:22]} 9. Re1 {[%emt 0:00:22]} Bf6 {[%emt 0:00:43]} 10. c3 {[%emt 0:01:31]} a6 {[%emt 0:01:19]} 11. a5 {[%emt 0:00:51]} b5 {[%emt 0:02:58]} 12. axb6 {[%emt 0:00:47]} Nxb6 {[%emt 0:00:39]} 13. Bb3 {[%emt 0:00:21]} Bf5 {[%emt 0:00:41]} 14. Bc2 {[%emt 0:00:22]} Qd7 {[%emt 0:01:05]} 15. Bg5 {[%emt 0:01:00]} Bxg5 {[%emt 0:02:20]} 16. Nxg5 {[%emt 0:00:22]} Nd5 {[%emt 0:01:06]} 17. Qf3 {[%emt 0:00:45]} h6 {[%emt 0:02:07]} 18. Ne4 {[%emt 0:00:46]} Nf4 {[%emt 0:01:09]} 19. Ba4 {[%emt 0:00:24]} Nxd3 {[%emt 0:01:55]} 20. Rd1 {[%emt 0:00:26]} Bxe4 {[%emt 0:02:43]} 21. Qxe4 {[%emt 0:00:22]} Nxf2 {[%emt 0:00:35]} 22. Rxd7 {[%emt 0:00:22]} Nxe4 {[%emt 0:00:21]} 23. Bxc6 {[%emt 0:00:22]} Ng5 {[%emt 0:00:00]} 1-0

[Event "EWIRCC 2019"]
[Site "Monte-Carlo"]
[Date "2019.11.30"]
[Round "1.8"]
[White "Salimova, Nurgyul"]
[Black "Cramling, Pia"]
[Result "1-0"]
[ECO "A40"]
[WhiteElo "2370"]
[BlackElo "2443"]
[Annotator "NA"]
[PlyCount "45"]
[EventDate "2019.11.28"]
[EventType "swiss"]
[EventCountry "MNC"]
[SourceTitle "playchess.com"]
[Source "ChessBase"]
[SourceQuality "1"]
[TimeControl "5400+30"]

1. c4 {[%emt 1:15:11]} b6 {[%emt 1:15:15]} 2. Nc3 {[%emt 0:00:24]} Bb7 {[%emt 0:00:22]} 3. d4 {[%emt 0:00:23]} e6 {[%emt 0:00:22]} 4. a3 {[%emt 0:00:33]} f5 {[%emt 0:00:23]} 5. Nf3 {[%emt 0:00:22]} Nf6 {[%emt 0:00:24]} 6. g3 {[%emt 0:00:32]} g6 {[%emt 0:00:28]} 7. Bg2 {[%emt 0:00:22]} Bg7 {[%emt 0:00:21]} 8. O-O {[%emt 0:00:27]} O-O {[%emt 0:00:21]} 9. d5 {[%emt 0:02:19]} Na6 {[%emt 0:00:31]} 10. Bf4 {[%emt 0:00:52]} Nc5 {[%emt 0:01:45]} 11. Rc1 {[%emt 0:02:32]} Nfe4 {[%emt 0:01:42]} 12. Be5 {[%emt 0:02:13]} Qe7 {[%emt 0:03:36]} 13. Bxg7 {[%emt 0:01:57]} Qxg7 {[%emt 0:00:25]} 14. Nd4 {[%emt 0:01:07]} e5 {[%emt 0:02:11]} 15. Nxe4 {[%emt 0:02:34]} Nxe4 {[%emt 0:00:27]} 16. Nb5 {[%emt 0:00:40]} c6 {[%emt 0:01:51]} 17. Bxe4 {[%emt 0:00:56]} cxb5 {[%emt 0:00:29]} 18. Bb1 {[%emt 0:03:21]} bxc4 {[%emt 0:00:33]} 19. Rxc4 {[%emt 0:00:24]} Qf7 {[%emt 0:01:08]} 20. Rc7 {[%emt 0:01:12]} Bxd5 {[%emt 0:00:28]} 21. Qd2 {[%emt 0:00:42]} Rfc8 {[%emt 0:00:58]} 22. Rfc1 {[%emt 0:00:35]} Bc6 {[%emt 0:00:55]} 23. R1xc6 {[%emt 0:00:23]} 1-0

[Event "EWIRCC 2019"]
[Site "Monte-Carlo"]
[Date "2019.11.30"]
[Round "1.9"]
[White "Bodnaruk, Anastasia"]
[Black "Limanovska, Elizabete"]
[Result "1-0"]
[ECO "B23"]
[WhiteElo "2412"]
[BlackElo "2178"]
[Annotator "NA"]
[PlyCount "75"]
[EventDate "2019.11.28"]
[EventType "swiss"]
[EventCountry "MNC"]
[SourceTitle "playchess.com"]
[Source "ChessBase"]
[SourceQuality "1"]
[TimeControl "5400+30"]

1. e4 {[%emt 1:15:11]} c5 {[%emt 1:15:10]} 2. Nc3 {[%emt 0:00:23]} Nc6 {[%emt 0:00:25]} 3. Nge2 {[%emt 0:00:24]} e5 {[%emt 0:00:57]} 4. Nd5 {[%emt 0:00:46]} d6 {[%emt 0:01:52]} 5. Nec3 {[%emt 0:00:32]} Be6 {[%emt 0:00:30]} 6. Bc4 {[%emt 0:00:52]} a6 {[%emt 0:03:02]} 7. a4 {[%emt 0:00:27]} Na5 {[%emt 0:00:21]} 8. d3 {[%emt 0:02:47]} Ne7 {[%emt 0:02:21]} 9. Bg5 {[%emt 0:02:13]} Nxc4 {[%emt 0:02:02]} 10. dxc4 {[%emt 0:00:26]} f6 {[%emt 0:00:54]} 11. Be3 {[%emt 0:00:56]} Nc6 {[%emt 0:01:38]} 12. O-O {[%emt 0:00:28]} Be7 {[%emt 0:01:11]} 13. Qd2 {[%emt 0:02:32]} O-O {[%emt 0:00:41]} 14. a5 {[%emt 0:00:36]} Nd4 {[%emt 0:00:47]} 15. Nb6 {[%emt 0:00:58]} Rb8 {[%emt 0:00:46]} 16. Ncd5 {[%emt 0:00:25]} f5 {[%emt 0:01:27]} 17. Bxd4 {[%emt 0:01:15]} cxd4 {[%emt 0:00:33]} 18. f3 {[%emt 0:00:32]} Bg5 {[%emt 0:00:29]} 19. Qd3 {[%emt 0:00:40]} Bxd5 {[%emt 0:01:03]} 20. Nxd5 {[%emt 0:00:50]} Qd7 {[%emt 0:00:21]} 21. c3 {[%emt 0:00:52]} dxc3 {[%emt 0:00:44]} 22. Nxc3 {[%emt 0:00:21]} Qe6 {[%emt 0:01:04]} 23. Rad1 {[%emt 0:01:21]} Rbd8 {[%emt 0:00:21]} 24. exf5 {[%emt 0:01:04]} Rxf5 {[%emt 0:00:46]} 25. Ne4 {[%emt 0:00:28]} Be7 {[%emt 0:00:23]} 26. Qb3 {[%emt 0:01:25]} Bf8 {[%emt 0:01:42]} 27. Rd5 {[%emt 0:01:01]} Qf7 {[%emt 0:01:14]} 28. Rfd1 {[%emt 0:00:22]} Rc8 {[%emt 0:00:21]} 29. Qd3 {[%emt 0:00:55]} Rf4 {[%emt 0:00:48]} 30. b3 {[%emt 0:00:33]} Qc7 {[%emt 0:00:24]} 31. Ng5 {[%emt 0:00:55]} Rh4 {[%emt 0:00:32]} 32. Rxe5 {[%emt 0:01:31]} Qc6 {[%emt 0:00:59]} 33. Qd5+ {[%emt 0:01:12]} Qxd5 {[%emt 0:00:21]} 34. Rexd5 {[%emt 0:00:21]} Rc5 {[%emt 0:00:36]} 35. Rxc5 {[%emt 0:00:50]} dxc5 {[%emt 0:00:21]} 36. Rd7 {[%emt 0:00:31]} Rd4 {[%emt 0:00:39]} 37. Rxb7 {[%emt 0:00:29]} h6 {[%emt 0:00:27]} 38. Ne4 {[%emt 0:00:35]} 1-0

[Event "EWIRCC 2019"]
[Site "Monte-Carlo"]
[Date "2019.11.30"]
[Round "1.10"]
[White "Ayzenberg, Alena"]
[Black "Batsiashvili, Nino"]
[Result "0-1"]
[ECO "E04"]
[WhiteElo "1912"]
[BlackElo "2422"]
[Annotator "NA"]
[PlyCount "110"]
[EventDate "2019.11.28"]
[EventType "swiss"]
[EventCountry "MNC"]
[SourceTitle "playchess.com"]
[Source "ChessBase"]
[SourceQuality "1"]
[TimeControl "5400+30"]

1. d4 {[%emt 1:15:13]} d5 {[%emt 1:15:11]} 2. c4 {[%emt 0:00:22]} e6 {[%emt 0:00:22]} 3. Nf3 {[%emt 0:15:55]} Nf6 4. g3 {[%emt 0:00:00]} dxc4 {[%emt 0:01:12]} 5. Bg2 {[%emt 0:00:00]} a6 {[%emt 0:00:33]} 6. a4 {[%emt 0:00:00]} c5 {[%emt 0:01:11]} 7. O-O {[%emt 0:00:00]} Nc6 {[%emt 0:00:22]} 8. dxc5 {[%emt 0:00:00]} Qxd1 {[%emt 0:00:22]} 9. Rxd1 {[%emt 0:00:00]} Bxc5 {[%emt 0:00:23]} 10. Nbd2 {[%emt 0:00:00]} O-O {[%emt 0:01:29]} 11. Nxc4 {[%emt 0:00:00]} Ng4 {[%emt 0:00:33]} 12. e3 {[%emt 0:00:00]} Rb8 {[%emt 0:01:16]} 13. a5 {[%emt 0:00:00]} e5 {[%emt 0:00:36]} 14. h3 {[%emt 0:00:00]} Be6 {[%emt 0:00:34]} 15. Nfd2 {[%emt 0:00:00]} Rfd8 {[%emt 0:00:51]} 16. Bf3 {[%emt 0:00:00]} Nf6 {[%emt 0:00:24]} 17. Bxc6 {[%emt 0:01:37]} bxc6 {[%emt 0:00:21]} 18. Nxe5 {[%emt 0:00:27]} Rd6 {[%emt 0:02:34]} 19. Kh2 {[%emt 0:00:34]} Bb4 {[%emt 0:00:25]} 20. Nef3 {[%emt 0:01:02]} c5 {[%emt 0:00:21]} 21. Rg1 {[%emt 0:00:36]} Rb5 {[%emt 0:00:55]} 22. b3 {[%emt 0:00:38]} Rxa5 {[%emt 0:00:44]} 23. Rxa5 {[%emt 0:00:30]} Bxa5 {[%emt 0:00:22]} 24. Nc4 {[%emt 0:00:31]} Bxc4 {[%emt 0:00:22]} 25. bxc4 {[%emt 0:00:22]} Ne4 {[%emt 0:00:26]} 26. Kg2 {[%emt 0:00:37]} Bc3 {[%emt 0:00:26]} 27. Ba3 {[%emt 0:00:25]} a5 {[%emt 0:00:22]} 28. Rb1 {[%emt 0:00:28]} Bb4 {[%emt 0:00:26]} 29. Bb2 {[%emt 0:00:34]} f6 {[%emt 0:00:42]} 30. Ra1 {[%emt 0:00:59]} Rd3 {[%emt 0:00:27]} 31. g4 {[%emt 0:00:34]} Rb3 {[%emt 0:00:32]} 32. Ra2 {[%emt 0:00:37]} a4 {[%emt 0:00:55]} 33. h4 {[%emt 0:00:59]} a3 {[%emt 0:00:24]} 34. Ba1 {[%emt 0:00:42]} Nd6 {[%emt 0:00:56]} 35. g5 {[%emt 0:00:31]} Kf7 {[%emt 0:00:21]} 36. gxf6 {[%emt 0:00:41]} gxf6 {[%emt 0:00:21]} 37. h5 {[%emt 0:00:54]} Nxc4 {[%emt 0:00:28]} 38. e4 {[%emt 0:00:25]} Rb2 {[%emt 0:00:51]} 39. Bxb2 {[%emt 0:00:53]} axb2 {[%emt 0:00:21]} 40. Rxb2 {[%emt 0:01:22]} Nxb2 {[%emt 0:00:21]} 41. e5 {[%emt 0:00:24]} c4 {[%emt 0:00:48]} 42. exf6 {[%emt 0:00:38]} Kxf6 {[%emt 0:00:22]} 43. Nd4 {[%emt 0:00:36]} c3 {[%emt 0:00:55]} 44. Kf3 {[%emt 0:00:41]} Bc5 {[%emt 0:00:21]} 45. Nc2 {[%emt 0:00:33]} Nd3 {[%emt 0:00:29]} 46. Ke4 {[%emt 0:00:45]} Nxf2+ {[%emt 0:00:31]} 47. Kd5 {[%emt 0:00:23]} Ba7 {[%emt 0:00:36]} 48. Kc4 {[%emt 0:00:25]} Nd1 {[%emt 0:00:28]} 49. Kd3 {[%emt 0:00:28]} Kg5 {[%emt 0:00:23]} 50. Ke2 {[%emt 0:00:24]} Nb2 {[%emt 0:00:23]} 51. Kf3 {[%emt 0:00:27]} Kxh5 {[%emt 0:00:34]} 52. Kf4 {[%emt 0:00:24]} Kg6 {[%emt 0:00:29]} 53. Kg4 {[%emt 0:00:25]} h5+ {[%emt 0:00:25]} 54. Kg3 {[%emt 0:00:27]} Nc4 {[%emt 0:00:28]} 55. Kf3 {[%emt 0:00:43]} Ne3 {[%emt 0:00:30]} 0-1